bitfinex/quotes_BTCUSD_20250131
["timestamp","ask_amount","ask_price","bid_price","bid_amount"]
[1738360233965,0.30633094,102220.0,102210.0,0.00025658]
[1738360234164,0.46317094,102220.0,102210.0,0.00025658]
[1738360234393,0.40683094,102220.0,102210.0,0.00025658]
[1738360234567,0.41367094,102220.0,102210.0,0.00025658]
[1738360235158,0.26367094,102220.0,102210.0,0.00025658]
[1738360235366,0.25683094,102220.0,102210.0,0.00025658]
[1738360235571,0.26367094,102220.0,102210.0,0.00025658]
[1738360235811,0.24688965,102220.0,102210.0,0.08015658]
[1738360236517,0.24688965,102220.0,102210.0,0.12715658]
[1738360237091,0.26905532,102220.0,102210.0,0.12715658]
[1738360237287,0.24662646,102220.0,102210.0,0.12715658]
[1738360237721,0.24662646,102220.0,102210.0,0.27391258]
[1738360239640,0.24662646,102220.0,102210.0,0.12715658]
[1738360239878,0.24662646,102220.0,102210.0,0.00025658]
[1738360240079,0.34410512,102220.0,102210.0,0.00025658]
[1738360241168,0.33410512,102220.0,102210.0,0.00025658]
[1738360241578,0.23674836,102220.0,102210.0,0.00025658]
[1738360245066,0.24668965,102220.0,102210.0,0.00025658]
[1738360245286,0.37548965,102220.0,102210.0,0.00025658]
[1738360245501,0.59133889,102220.0,102210.0,0.00025658]
[1738360246115,0.54538836,102220.0,102210.0,0.00025658]
[1738360246301,0.64274512,102220.0,102210.0,0.00025658]
[1738360246441,0.39538836,102220.0,102210.0,0.00025658]
[1738360247264,0.39638836,102220.0,102210.0,0.00025658]
[1738360248301,0.31458836,102220.0,102210.0,0.00025658]
[1738360250233,0.32451151,102220.0,102210.0,0.00025658]
[1738360250898,0.42186827,102220.0,102210.0,0.00025658]
[1738360253429,0.32451151,102220.0,102210.0,0.00025658]
[1738360255091,0.3344528,102220.0,102210.0,0.00025658]
[1738360255277,0.32451151,102220.0,102210.0,0.00025658]
[1738360258041,0.31451151,102220.0,102210.0,0.00025658]
[1738360262137,0.48451151,102220.0,102210.0,0.00025658]
[1738360262290,0.66116827,102220.0,102210.0,0.00025658]
[1738360262699,0.66116827,102220.0,102210.0,5.8e-07]
[1738360262896,0.6871188,102220.0,102210.0,5.8e-07]
[1738360264447,0.70920216,102220.0,102210.0,5.8e-07]
[1738360264633,0.68920216,102220.0,102210.0,5.8e-07]
[1738360265979,0.68920216,102220.0,102180.0,0.07706883]
[1738360265980,0.445685,102190.0,102180.0,8.3e-07]
[1738360266187,1.70525378,102190.0,102180.0,8.3e-07]
[1738360267007,1.776371,102190.0,102180.0,8.3e-07]
[1738360267498,1.676371,102190.0,102180.0,8.3e-07]
[1738360267681,1.656371,102190.0,102180.0,8.3e-07]
[1738360267980,1.658371,102190.0,102180.0,8.3e-07]
[1738360269534,0.146857,102140.0,102130.0,0.0002562]
[1738360269737,1.27189347,102140.0,102130.0,0.0002562]
[1738360269942,1.24319294,102140.0,102130.0,0.0002562]
[1738360270368,1.22751311,102140.0,102130.0,0.0770562]
[1738360270901,0.98355649,102140.0,102130.0,0.2239272]
[1738360271116,0.98355649,102140.0,102130.0,0.4210272]
[1738360271117,0.97671649,102140.0,102130.0,0.4210272]
[1738360271533,0.97771649,102140.0,102130.0,0.4260272]
[1738360271768,0.97771649,102140.0,102130.0,0.52338396]
[1738360272132,0.97771649,102140.0,102130.0,0.4260272]
[1738360272574,1.12457349,102140.0,102130.0,0.4300272]
[1738360272730,0.97771649,102140.0,102130.0,0.4300272]
[1738360273086,1.12457349,102140.0,102130.0,0.4300272]
[1738360273246,0.97671649,102140.0,102130.0,0.4250272]
[1738360273449,1.03950765,102140.0,102130.0,0.4280272]
[1738360273643,1.18636465,102140.0,102130.0,0.2811562]
[1738360273865,1.18636465,102140.0,102130.0,0.4280272]
[1738360274088,1.18636465,102140.0,102130.0,0.2811562]
[1738360274492,1.18636465,102140.0,102130.0,0.4280272]
[1738360274699,1.03950765,102140.0,102130.0,0.4280272]
[1738360274929,1.18636465,102140.0,102130.0,0.4280272]
[1738360275135,1.22181665,102140.0,102130.0,0.2811562]
[1738360275332,1.22181665,102140.0,102130.0,0.1271562]
[1738360276148,1.22081665,102140.0,102130.0,0.1241562]
[1738360276522,1.22081665,102140.0,102130.0,0.1281562]
[1738360277208,1.22081665,102140.0,102130.0,0.0810562]
[1738360278265,1.24539902,102140.0,102130.0,0.0810562]
[1738360281474,1.24539902,102140.0,102130.0,0.0042562]
[1738360282341,1.24539902,102140.0,102130.0,0.0002562]
[1738360282542,1.24639902,102140.0,102130.0,0.0002562]
[1738360282757,1.24639902,102140.0,102130.0,0.0012562]
[1738360284731,1.24639902,102140.0,102130.0,0.0027362]
[1738360285463,1.25632492,102140.0,102130.0,0.0027362]
[1738360294334,1.43926621,102140.0,102130.0,0.0027362]
[1738360299753,0.46504179,102140.0,102130.0,0.0027362]
[1738360301359,0.24759223,102140.0,102130.0,0.0027362]
[1738360301571,0.24759223,102140.0,102130.0,0.0824362]
[1738360310261,0.24759223,102140.0,102130.0,0.0027362]
[1738360322497,0.24992773,102140.0,102130.0,0.0027362]
[1738360325008,0.10307073,102140.0,102130.0,0.2762072]
[1738360325233,0.00582757,102140.0,102130.0,0.37356396]
[1738360325651,0.00582757,102140.0,102130.0,0.2762072]
[1738360325852,0.00482757,102140.0,102130.0,0.2762072]
[1738360326077,0.00482757,102140.0,102130.0,0.2752072]
[1738360326377,0.00482757,102140.0,102130.0,0.2762072]
[1738360327142,0.00482757,102140.0,102130.0,0.2752072]
[1738360327367,0.00582757,102140.0,102130.0,0.2752072]
[1738360327567,0.00582757,102140.0,102130.0,0.2792072]
[1738360327784,0.00482757,102140.0,102130.0,0.2792072]
[1738360328354,0.00482757,102140.0,102130.0,0.29836783]
[1738360329542,0.00482757,102140.0,102130.0,0.30811683]
[1738360330464,0.00482757,102140.0,102130.0,0.40547359]
[1738360330692,0.00482757,102140.0,102130.0,0.30811683]
[1738360330910,0.10207073,102140.0,102130.0,0.30811683]
[1738360333227,0.10207073,102140.0,102130.0,0.29836783]
[1738360333441,0.24892773,102140.0,102130.0,0.0054362]
[1738360335061,0.24892773,102140.0,102130.0,0.00569219]
[1738360335316,0.34628449,102140.0,102130.0,0.00569219]
[1738360336288,0.34628449,102140.0,102130.0,0.00169219]
[1738360336696,0.34728449,102140.0,102130.0,0.00269219]
[1738360338662,0.65992578,102140.0,102130.0,0.00269219]
[1738360339126,0.66998449,102140.0,102130.0,0.00269219]
[1738360339352,0.79684477,102140.0,102130.0,0.00269219]
[1738360339993,0.79584477,102140.0,102130.0,0.00269219]
[1738360340138,0.79784477,102140.0,102130.0,0.00169219]
[1738360340340,0.79984477,102140.0,102130.0,0.00169219]
[1738360340747,0.79584477,102140.0,102130.0,0.00169219]
[1738360340959,0.79784477,102140.0,102130.0,0.00169219]
[1738360341154,0.79984477,102140.0,102130.0,0.00169219]
[1738360342465,0.77984477,102140.0,102130.0,0.00169219]
[1738360343350,0.79992123,102140.0,102130.0,0.00169219]
[1738360343551,0.77306095,102140.0,102130.0,0.00169219]
[1738360344190,0.75992578,102140.0,102130.0,0.00169219]
[1738360344404,0.56496578,102140.0,102130.0,0.00169219]
[1738360344634,0.58496578,102140.0,102130.0,0.00169219]
[1738360345952,0.56496578,102140.0,102130.0,0.00169219]
[1738360346107,0.40502449,102140.0,102130.0,0.00169219]
[1738360346743,0.40514649,102140.0,102130.0,0.00169219]
[1738360346961,0.55514649,102140.0,102130.0,0.00169219]
[1738360347602,0.56508778,102140.0,102130.0,0.00169219]
[1738360348184,0.54830649,102140.0,102130.0,0.00169219]
[1738360348399,0.50724649,102140.0,102130.0,0.00169219]
[1738360349158,0.51718778,102140.0,102130.0,0.00169219]
[1738360349358,0.56598778,102140.0,102130.0,0.00169219]
[1738360359063,0.58898778,102140.0,102130.0,0.00169219]
[1738360359282,0.78024649,102140.0,102130.0,0.00169219]
[1738360359493,0.80710677,102140.0,102130.0,0.00169219]
[1738360361464,0.78710677,102140.0,102130.0,0.00169219]
[1738360362708,0.81704806,102140.0,102130.0,0.00169219]
[1738360362908,0.71584806,102140.0,102130.0,0.00169219]
[1738360363141,0.68898778,102140.0,102130.0,0.00169219]
[1738360363352,0.70898778,102140.0,102130.0,0.00169219]
[1738360363789,0.58898778,102140.0,102130.0,0.00169219]
[1738360364185,0.60898778,102140.0,102130.0,0.00169219]
[1738360364403,0.58898778,102140.0,102130.0,0.00169219]
[1738360364560,0.60898778,102140.0,102130.0,0.00169219]
[1738360364757,0.58898778,102140.0,102130.0,0.00169219]
[1738360365374,0.51718778,102140.0,102130.0,0.00169219]
[1738360373144,0.58948778,102140.0,102130.0,0.00169219]
[1738360373299,0.61634806,102140.0,102130.0,0.00169219]
[1738360373905,0.70960677,102140.0,102130.0,0.00169219]
[1738360374135,0.60640677,102140.0,102130.0,0.00169219]
[1738360374953,0.62640677,102140.0,102130.0,0.00169219]
[1738360376949,0.62640677,102140.0,102130.0,0.00169219]
[1738360380418,0.54018778,102140.0,102130.0,0.00169219]
[1738360383035,0.57724395,102140.0,102130.0,0.00169219]
[1738360383244,0.60174374,102140.0,102130.0,0.00169219]
[1738360384074,0.60438698,102140.0,102130.0,0.00169219]
[1738360384283,0.70888698,102140.0,102130.0,0.00169219]
[1738360384523,0.71208698,102140.0,102130.0,1.9e-07]
[1738360384654,1.17094698,102140.0,102130.0,1.9e-07]
[1738360385661,1.16894698,102140.0,102130.0,1.9e-07]
[1738360385904,1.26430374,102140.0,102130.0,1.9e-07]
[1738360386105,1.26730374,102140.0,102130.0,1.9e-07]
[1738360386442,1.27130374,102140.0,102130.0,1.9e-07]
[1738360388670,0.87130374,102140.0,102130.0,1.9e-07]
[1738360388871,0.25684129,102110.0,102100.0,0.0002562]
[1738360389015,1.41310003,102110.0,102100.0,0.0002562]
[1738360389217,1.44201398,102110.0,102100.0,0.0002562]
[1738360389678,1.44885398,102110.0,102100.0,0.0002562]
[1738360390243,1.44885398,102110.0,102100.0,0.0042562]
[1738360391060,1.44885398,102110.0,102100.0,0.0012562]
[1738360391298,1.44885398,102110.0,102100.0,0.0022562]
[1738360391495,1.44885398,102110.0,102100.0,0.0012562]
[1738360391697,1.43891269,102110.0,102100.0,0.0012562]
[1738360392682,1.43207269,102110.0,102100.0,0.0012562]
[1738360392879,1.43891269,102110.0,102100.0,0.0012562]
[1738360394605,1.41191523,102110.0,102100.0,0.0012562]
[1738360395428,1.42192227,102110.0,102100.0,0.0012562]
[1738360396643,1.44192227,102110.0,102100.0,0.0012562]
[1738360396924,1.36891973,102110.0,102100.0,0.0012562]
[1738360398051,1.38891116,102110.0,102100.0,0.0012562]
[1738360399643,0.18294129,102080.0,102070.0,0.00025599]
[1738360399845,1.4583445,102080.0,102070.0,9.9e-07]
[1738360400199,1.53496273,102080.0,102070.0,9.9e-07]
[1738360400408,1.86356273,102080.0,102070.0,9.9e-07]
[1738360401042,1.86470924,102080.0,102070.0,9.9e-07]
[1738360402242,1.86370924,102080.0,102070.0,9.9e-07]
[1738360402648,1.86770924,102080.0,102070.0,9.9e-07]
[1738360403475,1.86970924,102080.0,102070.0,9.9e-07]
[1738360404276,1.889145,102080.0,102070.0,9.9e-07]
[1738360404939,1.70487786,102080.0,102070.0,0.07840099]
[1738360405155,1.23311786,102080.0,102070.0,0.07840099]
[1738360405357,1.38311786,102080.0,102070.0,0.07840099]
[1738360405772,1.23311786,102080.0,102070.0,0.07840099]
[1738360406181,1.38311786,102080.0,102070.0,0.07840099]
[1738360406360,1.46682816,102080.0,102070.0,0.07840099]
[1738360406610,1.46382816,102080.0,102070.0,0.07840099]
[1738360406818,1.59676945,102080.0,102070.0,9.9e-07]
[1738360407277,1.60655402,102080.0,102070.0,9.9e-07]
[1738360407482,1.95421019,102080.0,102070.0,9.9e-07]
[1738360407702,2.06070998,102080.0,102070.0,9.9e-07]
[1738360408373,2.08070998,102080.0,102070.0,9.9e-07]
[1738360408618,0.32992729,102050.0,102040.0,0.1235]
[1738360408805,1.4343876,102050.0,102040.0,0.1235]
[1738360409009,1.48759501,102050.0,102040.0,0.1235]
[1738360409417,1.48759501,102050.0,102040.0,0.0756]
[1738360409770,1.48759501,102050.0,102040.0,0.0766]
[1738360410370,0.147015,102030.0,102020.0,0.0487562]
[1738360410587,1.28284661,102030.0,102020.0,0.0487562]
[1738360410788,1.28453917,102030.0,102020.0,0.1255562]
[1738360411438,1.48603642,102030.0,102020.0,0.1255562]
[1738360411736,1.48618282,102030.0,102020.0,0.1255562]
[1738360412337,1.43468557,102030.0,102020.0,0.1255562]
[1738360412720,1.46762686,102030.0,102020.0,0.1255562]
[1738360412922,1.51912411,102030.0,102020.0,0.0770562]
[1738360413136,1.51912411,102030.0,102020.0,0.0780562]
[1738360414077,1.51912411,102030.0,102020.0,0.0770562]
[1738360415289,1.51912411,102030.0,102020.0,0.0002562]
[1738360415494,1.61912411,102030.0,102020.0,0.0022562]
[1738360416479,1.62880217,102030.0,102020.0,0.0022562]
[1738360417668,1.64835412,102030.0,102020.0,0.0022562]
[1738360418783,1.62880217,102030.0,102020.0,0.0022562]
[1738360420372,1.57730492,102030.0,102020.0,0.0022562]
[1738360421523,1.62880217,102030.0,102020.0,0.0022562]
[1738360424198,1.60430238,102030.0,102020.0,0.0022562]
[1738360424444,1.57730492,102030.0,102020.0,0.0022562]
[1738360424976,1.61581549,102030.0,102020.0,0.0022562]
[1738360425311,1.62265549,102030.0,102020.0,0.0022562]
[1738360426351,1.39995421,102030.0,102020.0,0.0022562]
[1738360426585,1.40679421,102030.0,102020.0,0.0800562]
[1738360429297,1.40679421,102030.0,102020.0,0.0022562]
[1738360431575,1.43379167,102030.0,102020.0,0.0022562]
[1738360431776,1.44385038,102030.0,102020.0,2e-07]
[1738360431990,1.66920714,102030.0,102020.0,2e-07]
[1738360432194,1.69370693,102030.0,102020.0,2e-07]
[1738360432827,0.297058,102000.0,101990.0,0.0002562]
[1738360433038,1.36852558,102000.0,101990.0,0.0775562]
[1738360433246,1.39891652,102000.0,101990.0,0.0775562]
[1738360435273,1.39991652,102000.0,101990.0,0.0775562]
[1738360435650,1.40091652,102000.0,101990.0,0.0775562]
[1738360435849,1.37211809,102000.0,101990.0,0.1265562]
[1738360436127,1.37895809,102000.0,101990.0,0.1265562]
[1738360436729,1.37695809,102000.0,101990.0,0.1265562]
[1738360436935,1.37111809,102000.0,101990.0,0.1265562]
[1738360437078,1.47531485,102000.0,101990.0,0.1265562]
[1738360437485,1.37895809,102000.0,101990.0,0.1265562]
[1738360438809,1.37795809,102000.0,101990.0,0.1265562]
[1738360440368,1.38671221,102000.0,101990.0,0.1265562]
[1738360440784,1.38671221,102000.0,101990.0,0.1275562]
[1738360448830,1.23671221,102000.0,101990.0,0.1275562]
[1738360450133,1.33406897,102000.0,101990.0,0.1275562]
[1738360451305,1.32431485,102000.0,101990.0,0.1275562]
[1738360451609,1.22695809,102000.0,101990.0,0.1275562]
[1738360452621,1.22011809,102000.0,101990.0,0.2746292]
[1738360453008,1.22011809,102000.0,101990.0,0.1275562]
[1738360453266,1.22011809,102000.0,101990.0,0.2746292]
[1738360453911,1.22011809,102000.0,101990.0,0.1275562]
[1738360456251,1.22011809,102000.0,101990.0,0.2746292]
[1738360457485,1.22011809,102000.0,101990.0,0.1275562]
[1738360458011,1.22011809,102000.0,101990.0,0.2746292]
[1738360460075,0.97581693,102000.0,101990.0,0.40400657]
[1738360460663,0.97581693,102000.0,101990.0,0.58449412]
[1738360460868,0.00159251,102000.0,101990.0,0.58349412]
[1738360461224,0.001,102000.0,101990.0,0.58549412]
[1738360461432,0.00254439,102000.0,101990.0,0.58549412]
[1738360461637,0.001,102000.0,101990.0,0.68285088]
[1738360461813,0.00253936,102000.0,101990.0,0.68285088]
[1738360462013,0.001,102000.0,101990.0,0.68285088]
[1738360462215,0.00253936,102000.0,101990.0,0.68285088]
[1738360462553,0.00253936,102000.0,101990.0,0.68185088]
[1738360462772,0.00253936,102000.0,101990.0,0.68685088]
[1738360465872,0.00253936,102000.0,101990.0,0.69661945]
[1738360466079,0.00253936,102000.0,101990.0,0.81686261]
[1738360466279,0.000122,102020.0,102010.0,0.1247]
[1738360466525,0.000122,102020.0,102010.0,0.55181454]
[1738360466725,0.000122,102020.0,102010.0,0.58123852]
[1738360467676,0.000122,102020.0,102010.0,0.58623852]
[1738360468083,0.001122,102020.0,102010.0,0.58823852]
[1738360468421,0.001122,102020.0,102010.0,0.46799536]
[1738360468667,0.001122,102020.0,102010.0,0.33361799]
[1738360468868,0.001122,102020.0,102010.0,0.303214]
[1738360469088,0.002122,102020.0,102010.0,0.310214]
[1738360470003,0.002122,102020.0,102010.0,0.43959137]
[1738360473839,0.00362318,102020.0,102010.0,0.43959137]
[1738360475707,0.00362318,102020.0,102010.0,0.45952635]
[1738360476282,0.00362318,102020.0,102010.0,0.33014898]
[1738360476598,0.00362318,102020.0,102010.0,0.46935739]
[1738360477202,0.00362318,102020.0,102010.0,0.33998002]
[1738360478702,0.00362318,102020.0,102010.0,0.49235739]
[1738360478935,0.00362318,102020.0,102010.0,0.58960055]
[1738360487984,0.00362318,102020.0,102010.0,0.61989533]
[1738360490077,0.00362318,102020.0,102010.0,0.79989533]
[1738360490963,0.00262318,102020.0,102010.0,0.79289533]
[1738360491241,0.00262318,102020.0,102010.0,0.79889533]
[1738360491620,0.00362318,102020.0,102010.0,0.80789533]
[1738360492448,0.00362318,102020.0,102010.0,0.79789533]
[1738360492646,0.00362318,102020.0,102010.0,0.80789533]
[1738360493637,0.00362318,102020.0,102010.0,0.77789533]
[1738360495623,0.00362318,102020.0,102010.0,0.64851796]
[1738360495757,0.9778476,102020.0,102010.0,0.2535748]
[1738360496628,0.00362318,102020.0,102010.0,0.2535748]
[1738360496851,0.00362318,102020.0,102010.0,0.4035748]
[1738360501244,0.00362318,102020.0,102010.0,0.2535748]
[1738360501590,0.05172318,102020.0,102010.0,0.22328002]
[1738360501772,0.05172318,102020.0,102010.0,0.19381002]
[1738360501984,0.05172318,102020.0,102010.0,0.19479016]
[1738360503842,0.00362318,102020.0,102010.0,0.47416753]
[1738360504048,0.00362318,102020.0,102010.0,0.60622903]
[1738360504250,0.00362318,102020.0,102010.0,0.79968427]
[1738360504972,0.00362318,102020.0,102010.0,0.50106374]
[1738360505305,0.00362318,102020.0,102010.0,0.42146374]
[1738360505523,0.00362318,102020.0,102010.0,0.3910221]
[1738360505740,0.05192318,102020.0,102010.0,0.3910221]
[1738360506164,0.05192318,102020.0,102010.0,0.4214635]
[1738360507182,0.00362318,102020.0,102010.0,0.4214635]
[1738360508645,0.00362318,102020.0,102010.0,0.55084087]
[1738360509051,0.00362318,102020.0,102010.0,0.4214635]
[1738360512664,0.00362318,102020.0,102010.0,0.3910221]
[1738360514402,0.15065218,102020.0,102010.0,0.2439781]
[1738360514587,0.15065218,102020.0,102010.0,0.19676602]
[1738360514825,0.15065218,102020.0,102010.0,0.04676602]
[1738360515950,0.00362318,102020.0,102010.0,0.73221069]
[1738360516163,0.0002685,102030.0,102020.0,0.297029]
[1738360516367,1.16751092,102030.0,102010.0,0.46905202]
[1738360516581,1.36353192,102030.0,102010.0,0.66118763]
[1738360516835,1.02049292,102030.0,102020.0,0.147029]
[1738360517058,1.16750792,102030.0,102010.0,0.65318763]
[1738360517271,1.16750792,102030.0,102010.0,0.84923463]
[1738360517505,1.16750792,102030.0,102020.0,0.147029]
[1738360517709,1.16850792,102030.0,102020.0,0.21631023]
[1738360518127,1.16850792,102030.0,102020.0,0.06928123]
[1738360518538,0.147029,102020.0,102010.0,0.18581002]
[1738360518716,1.73280108,102030.0,102010.0,0.38185902]
[1738360518918,0.147029,102020.0,102010.0,0.33581002]
[1738360519125,1.73281308,102030.0,102010.0,0.33581002]
[1738360519354,0.147029,102020.0,102010.0,0.53186902]
[1738360520110,0.147029,102020.0,102010.0,0.18581002]
[1738360520498,0.147029,102020.0,102010.0,0.16697898]
[1738360520499,0.32407216,102020.0,102010.0,0.16697898]
[1738360520728,0.17704316,102020.0,102010.0,0.16697898]
[1738360520933,0.17704316,102020.0,102010.0,0.2376201]
[1738360521343,0.17804316,102020.0,102010.0,0.2466201]
[1738360521877,0.09824316,102020.0,102010.0,0.2466201]
[1738360522081,0.09724316,102020.0,102010.0,0.2376201]
[1738360522282,0.09724316,102020.0,102010.0,0.16697898]
[1738360522497,0.09724316,102020.0,102010.0,0.17695917]
[1738360522498,0.09824316,102020.0,102010.0,0.17695917]
[1738360522894,0.09824316,102020.0,102010.0,0.18495917]
[1738360523296,0.24527216,102020.0,102010.0,0.18521537]
[1738360523504,0.24527216,102020.0,102010.0,0.17721537]
[1738360523875,0.09947374,102020.0,102010.0,0.18421537]
[1738360524662,0.24650274,102020.0,102010.0,0.18421537]
[1738360524864,0.09947374,102020.0,102010.0,0.25758265]
[1738360525072,0.09947374,102020.0,102010.0,0.18323518]
[1738360525271,0.09947374,102020.0,102010.0,0.18421536]
[1738360526683,0.00223058,102020.0,102010.0,0.54229273]
[1738360526907,0.00223058,102020.0,102010.0,0.74143488]
[1738360527753,0.00223058,102020.0,102010.0,0.76443488]
[1738360527972,5.8e-07,102020.0,102010.0,0.86179164]
[1738360528198,5e-08,102020.0,102010.0,0.86179164]
[1738360528419,5.5e-07,102030.0,102020.0,0.409929]
[1738360528621,5.5e-07,102030.0,102020.0,0.79630607]
[1738360530144,5.5e-07,102030.0,102020.0,0.6669287]
[1738360530351,5.5e-07,102030.0,102020.0,0.71414078]
[1738360530551,5.5e-07,102030.0,102020.0,0.77934078]
[1738360530701,5.5e-07,102030.0,102020.0,0.64996341]
[1738360533716,5.5e-07,102030.0,102020.0,0.97386341]
[1738360533917,5.5e-07,102030.0,102020.0,0.99686341]
[1738360534123,5.5e-07,102030.0,102020.0,0.67296341]
[1738360534527,5.5e-07,102030.0,102020.0,0.64296341]
[1738360534752,5.5e-07,102030.0,102020.0,0.73046326]
[1738360535165,5.5e-07,102030.0,102020.0,0.70984063]
[1738360535571,5.5e-07,102030.0,102020.0,0.82946146]
[1738360535809,5.5e-07,102030.0,102020.0,0.67946146]
[1738360535981,5.5e-07,102030.0,102020.0,0.8597435]
[1738360536232,5.5e-07,102030.0,102020.0,0.82971766]
[1738360536407,0.00012255,102030.0,102020.0,0.82971766]
[1738360536793,0.00012255,102030.0,102020.0,0.85999846]
[1738360537167,0.97422442,102040.0,102030.0,0.346013]
[1738360537382,0.97422442,102040.0,102030.0,0.44336976]
[1738360537583,0.97539543,102040.0,102030.0,0.44336976]
[1738360537793,0.97539543,102040.0,102030.0,0.57274713]
[1738360539186,0.97539543,102040.0,102030.0,0.58174713]
[1738360541296,0.97539543,102040.0,102030.0,0.58974713]
[1738360541924,0.97539543,102040.0,102030.0,0.56242413]
[1738360542642,0.97539543,102040.0,102030.0,0.4522526]
[1738360545951,0.97539543,102040.0,102030.0,0.35489584]
[1738360549003,0.97551743,102040.0,102030.0,0.35489584]
[1738360551068,0.00129301,102040.0,102030.0,0.48427321]
[1738360551679,0.00129301,102040.0,102030.0,0.35489584]
[1738360553268,0.00129301,102040.0,102030.0,0.68121637]
[1738360553473,0.00129301,102040.0,102030.0,0.77857313]
[1738360554228,0.00129301,102040.0,102030.0,0.82657313]
[1738360554449,0.00129301,102040.0,102030.0,0.99627107]
[1738360554895,0.000122,102040.0,102030.0,0.99627107]
[1738360556423,0.00117625,102040.0,102030.0,1.01627107]
[1738360556628,1e-06,102040.0,102030.0,1.01627107]
[1738360557150,0.00117625,102040.0,102030.0,1.01627107]
[1738360557346,1e-06,102040.0,102030.0,1.01627107]
[1738360557550,0.0011706,102040.0,102030.0,1.01627107]
[1738360557688,1e-06,102040.0,102030.0,1.01627107]
[1738360557894,0.00117302,102040.0,102030.0,1.01627107]
[1738360560134,0.00117302,102040.0,102030.0,1.01652727]
[1738360560327,0.00117302,102040.0,102030.0,0.8871499]
[1738360560536,0.00117302,102040.0,102030.0,1.01652727]
[1738360560940,1e-06,102040.0,102030.0,1.01652727]
[1738360561445,1e-06,102040.0,102030.0,0.8871499]
[1738360561649,0.00118806,102040.0,102030.0,0.8871499]
[1738360563386,1e-06,102040.0,102030.0,0.8871499]
[1738360563645,0.00118806,102040.0,102030.0,0.8871499]
[1738360563823,1e-06,102040.0,102030.0,0.8871499]
[1738360564026,0.00118806,102040.0,102030.0,0.8781499]
[1738360564231,1e-06,102040.0,102030.0,0.8781499]
[1738360564434,0.00118806,102040.0,102030.0,0.8871499]
[1738360564636,1e-06,102040.0,102030.0,0.8791499]
[1738360564810,0.00118806,102040.0,102030.0,0.8791499]
[1738360565029,1e-06,102040.0,102030.0,0.8881499]
[1738360565236,0.00118806,102040.0,102030.0,0.8881499]
[1738360565445,0.00118806,102040.0,102030.0,0.8681499]
[1738360565619,0.00118806,102040.0,102030.0,0.8881499]
[1738360567914,0.00118806,102040.0,102030.0,0.8781499]
[1738360568097,1e-06,102040.0,102030.0,0.8301499]
[1738360574698,1e-06,102040.0,102030.0,0.91764975]
[1738360576912,1e-06,102040.0,102030.0,1.10512712]
[1738360577114,4.86e-05,102060.0,102030.0,1.10512712]
[1738360577115,4.86e-05,102060.0,102050.0,0.52506337]
[1738360577291,0.0012251,102060.0,102050.0,0.66951861]
[1738360578156,0.0012251,102060.0,102050.0,0.69983918]
[1738360578903,0.0012251,102060.0,102050.0,0.37451865]
[1738360579166,0.0462251,102060.0,102050.0,0.37451865]
[1738360579497,0.0462251,102060.0,102050.0,0.50389602]
[1738360579705,0.0012251,102060.0,102050.0,0.64370088]
[1738360580205,0.0012251,102060.0,102050.0,0.65270088]
[1738360581040,0.0012251,102060.0,102050.0,0.64370088]
[1738360581347,0.0012251,102060.0,102050.0,0.65270088]
[1738360583473,0.0012251,102060.0,102050.0,0.6626246]
[1738360584234,0.0012251,102060.0,102050.0,0.6686246]
[1738360584977,0.0012251,102060.0,102050.0,0.7414246]
[1738360585225,0.0012251,102060.0,102050.0,0.7494246]
[1738360588922,4.86e-05,102060.0,102050.0,0.7494246]
[1738360589434,0.0001706,102060.0,102050.0,0.7494246]
[1738360589786,0.00134352,102060.0,102050.0,0.7494246]
[1738360590766,0.0001706,102060.0,102050.0,0.7494246]
[1738360590968,0.0001706,102060.0,102050.0,0.7975246]
[1738360591672,0.0001706,102060.0,102050.0,0.8075246]
[1738360591854,0.0013426,102060.0,102050.0,0.8075246]
[1738360592025,0.0001706,102060.0,102050.0,0.8075246]
[1738360592234,0.0013426,102060.0,102050.0,0.8075246]
[1738360592478,0.146915,102100.0,102050.0,0.8075246]
[1738360592479,1.09902442,102110.0,102060.0,0.349972]
[1738360592684,1.09902442,102110.0,102100.0,0.146914]
[1738360592893,1.09902442,102110.0,102100.0,0.14789331]
[1738360594082,1.09917024,102110.0,102100.0,0.14789331]
[1738360597579,1.09917024,102110.0,102100.0,0.14989331]
[1738360598007,1.09917024,102110.0,102100.0,0.15949828]
[1738360598838,1.09917024,102110.0,102100.0,0.17959198]
[1738360601828,1.09917024,102110.0,102100.0,0.22680406]
[1738360602033,1.01979224,102110.0,102100.0,0.22582475]
[1738360602743,1.01979224,102110.0,102100.0,0.34606791]
[1738360602744,0.97449224,102110.0,102100.0,0.34606791]
[1738360602948,0.00026782,102110.0,102100.0,0.47344528]
[1738360603342,0.00026782,102110.0,102100.0,0.48244528]
[1738360604545,0.00026782,102110.0,102100.0,0.63244528]
[1738360605222,0.00026782,102110.0,102100.0,0.63544528]
[1738360608932,0.00143969,102110.0,102100.0,0.63544528]
[1738360609335,0.00026782,102110.0,102100.0,0.63544528]
[1738360612529,0.00026782,102110.0,102100.0,0.50606791]
[1738360617418,0.00026782,102110.0,102100.0,0.38582475]
[1738360617623,0.04716782,102110.0,102100.0,0.38582475]
[1738360617791,0.04845579,102110.0,102100.0,0.38582475]
[1738360618397,0.00026782,102110.0,102100.0,0.63544528]
[1738360620525,0.95449224,102120.0,102100.0,0.63544528]
[1738360620726,0.97422442,102120.0,102110.0,0.00097917]
[1738360620912,0.97422442,102120.0,102110.0,0.19683217]
[1738360621107,0.97422442,102120.0,102110.0,0.48906876]
[1738360622105,0.97422442,102120.0,102110.0,0.49106876]
[1738360624354,0.124422,102130.0,102120.0,0.319886]
[1738360624355,0.045722,102130.0,102120.0,0.319886]
[1738360624558,0.000122,102130.0,102120.0,0.41712916]
[1738360624755,0.0014094,102130.0,102120.0,0.41712916]
[1738360624958,0.0014094,102130.0,102120.0,0.46434124]
[1738360625540,0.0014094,102130.0,102120.0,0.47034124]
[1738360625952,0.0014094,102130.0,102120.0,0.47934124]
[1738360626533,0.0014094,102130.0,102120.0,0.50963927]
[1738360626756,0.0014094,102130.0,102120.0,0.63901664]
[1738360627393,0.0014094,102130.0,102120.0,0.71931664]
[1738360628242,0.0014094,102130.0,102120.0,0.76551664]
[1738360629361,0.0014094,102130.0,102120.0,0.78508985]
[1738360631151,0.0014094,102130.0,102120.0,0.79473658]
[1738360632414,0.0014094,102130.0,102120.0,0.81473658]
[1738360635456,0.0014094,102130.0,102120.0,0.94411395]
[1738360636084,0.0014094,102130.0,102120.0,0.81473658]
[1738360636263,0.0014094,102130.0,102120.0,0.94411395]
[1738360636474,0.0014094,102130.0,102120.0,0.80873658]
[1738360636809,0.0014094,102130.0,102120.0,0.93811395]
[1738360637032,0.0014094,102130.0,102120.0,0.81673658]
[1738360639296,0.0014094,102130.0,102120.0,0.80773658]
[1738360640455,0.0014094,102130.0,102120.0,0.78773658]
[1738360640664,0.0014094,102130.0,102120.0,0.81673658]
[1738360642724,0.0014094,102130.0,102120.0,0.85657247]
[1738360645640,0.0014094,102130.0,102120.0,0.83657247]
[1738360646171,0.0014094,102130.0,102120.0,0.70576584]
[1738360646828,0.0014094,102130.0,102120.0,0.62546584]
[1738360647579,0.0014094,102130.0,102120.0,0.71007247]
[1738360647969,0.0014094,102130.0,102120.0,0.62546584]